fUST/lending_fUST_20251218
["ID","MTS","AMOUNT","RATE_DAILY","PERIOD"]
[399013300,1766073032559,-410.0,0.00028476,120]
[399013301,1766073032568,-720.0,0.00028835,30]
[399013302,1766073032577,-218.42297087,0.00028986,2]
[399013303,1766073032586,-661.60467805,0.00029059,102]
[399013304,1766073032596,-796.31256634,0.0002906,83]
[399013305,1766073032606,-276.0,0.00029145,120]
[399013306,1766073032616,-194.0,0.00029184,120]
[399013307,1766073032628,-796.31256634,0.0002969,87]
[399013308,1766073032638,-164.0,0.00029692,120]
[399013309,1766073032647,-239.47346557,0.0002975,2]
[399013310,1766073032656,-1041.66666667,0.00029815,2]
[399013311,1766073032667,-410.0,0.00029899,120]
[399013312,1766073032676,-200.426515,0.00030137,120]
[399013313,1766073032685,-193.58355277,0.00030269,10]
[399013314,1766073032694,-796.31256634,0.0003032,91]
[399013315,1766073032704,-232.66533806,0.00030843,2]
[399013316,1766073032713,-796.31256634,0.0003095,95]
[399013317,1766073032723,-410.0,0.00031394,120]
[399013318,1766073032732,-501.86758368,0.00031449,2]
[399013319,1766073032741,-701.08124411,0.00031547,22]
[399013320,1766073032750,-796.31256634,0.0003158,98]
[399013321,1766073032759,-253.896,0.00031635,30]
[399013322,1766073032769,-864.0,0.00031719,30]
[399013323,1766073032779,-1523.5709858,0.00031753,2]
[399013324,1766073032788,-380.81529953,0.00032099,2]
[399013325,1766073032797,-365.95851929,0.00032099,2]
[399013326,1766073032806,-796.31256634,0.0003221,102]
[399013327,1766073032819,-449.58403507,0.0003245,2]
[399013328,1766073032829,-250.0,0.0003245,2]
[399013329,1766073032838,-250.0,0.0003245,2]
[399013330,1766073032848,-250.0,0.0003245,2]
[399013331,1766073032859,-150.0,0.00032549,30]
[399013332,1766073032870,-796.31256634,0.0003284,106]
[399013333,1766073032879,-410.0,0.00032964,120]
[399013334,1766073032888,-192.95425371,0.000332,117]
[399013335,1766073032899,-796.31256634,0.0003347,110]
[399013336,1766073032908,-232.8980034,0.00033562,2]
[399013337,1766073032918,-164.05719914,0.00033562,2]
[399013338,1766073032928,-150.0,0.00034099,30]
[399013339,1766073032937,-410.0,0.00034612,120]
[399013340,1766073032946,-1000.0,0.00034891,30]
[399013341,1766073032956,-162.0,0.00035,120]
[399013342,1766073032965,-1002.80769105,0.00035,14]
[399013343,1766073032974,-2068.5703976,0.00035391,2]
[399013344,1766073032984,-200.0,0.0003545,41]
[399013345,1766073032993,-150.0,0.00035649,30]
[399013346,1766073033003,-200.0,0.00036,120]
[399013347,1766073033012,-410.0,0.00036343,120]
[399013348,1766073033022,-500.0,0.00036488,30]
[399013349,1766073033032,-500.0,0.00036711,30]
[399013350,1766073033041,-150.0,0.00037199,30]
[399013351,1766073033051,-327.78679618,0.00037298,2]
[399013352,1766073033060,-325.0,0.0003786,48]
[399013353,1766073033069,-410.0,0.0003816,120]
[399013354,1766073033079,-3659.84176861,0.00038205,2]
[399013355,1766073033088,-500.0,0.00038356,120]
[399013356,1766073033098,-1000.0,0.0003838,60]
[399013357,1766073033107,-244.0,0.0003838,60]
[399013358,1766073033118,-299.0,0.00038411,120]
[399013359,1766073033127,-299.0,0.00038411,120]
[399013360,1766073033137,-299.0,0.00038411,120]
[399013361,1766073033146,-299.0,0.00038411,120]
[399013362,1766073033156,-19064.0,0.000385,5]
[399013363,1766073033166,-1370.853,0.00038507,2]
[399013364,1766073033277,-2158.0,0.00038507,2]
[399013365,1766073033287,-632.0,0.00038507,2]
[399013366,1766073033298,-415.0,0.00038507,2]
[399013367,1766073033307,-237.26177544,0.000387,21]
[399013368,1766073033316,-150.0,0.00038749,30]
[399013369,1766073033326,-800.0,0.0003879,7]
[399013370,1766073033335,-1023.39779363,0.00038799,2]
[399013371,1766073033344,-1023.39779362,0.00038799,2]
[399013372,1766073033354,-1023.39779362,0.000388,2]
[399013373,1766073033363,-1023.39779362,0.000388,2]
[399013374,1766073033374,-1023.39779362,0.000388,2]
[399013375,1766073033383,-800.0,0.00038834,7]
[399013376,1766073033392,-200.0,0.0003884,120]
[399013377,1766073033401,-1554.3153018,0.0003889,3]
[399013378,1766073033410,-151.0,0.00038899,120]
[399013379,1766073033419,-151.0,0.00038899,120]
[399013380,1766073033428,-151.0,0.00038899,120]
[399013381,1766073033437,-151.0,0.00038899,120]
[399013382,1766073033446,-151.0,0.00038899,120]
[399013383,1766073033455,-262.021421,0.00038899,120]
[399013384,1766073033464,-151.0,0.00038899,120]
[399013385,1766073033473,-151.0,0.00038899,120]
[399013386,1766073033482,-151.0,0.00038899,90]
[399013387,1766073033491,-151.0,0.00038899,90]
[399013388,1766073033500,-151.0,0.00038899,90]
[399013389,1766073033509,-184.784357,0.00038899,120]
[399013390,1766073033518,-392.176687,0.00038899,120]
[399013391,1766073033527,-392.176687,0.00038899,120]
[399013392,1766073033536,-151.265822,0.00038899,120]
[399013393,1766073033546,-392.176687,0.00038899,120]
[399013394,1766073033556,-392.176687,0.00038899,120]
[399013395,1766073033565,-151.0,0.00038899,120]
[399013396,1766073033574,-170.443069,0.00038899,120]
[399013397,1766073033584,-170.443069,0.00038899,120]
[399013398,1766073033593,-170.443069,0.00038899,120]
[399013399,1766073033603,-170.443069,0.00038899,120]
[399013400,1766073033612,-293711.87679866,0.000389,2]
[399013401,1766073033627,-315.50195769,0.000389,2]
[399013402,1766073033875,1805.92532195,0.00018,2]
[399013403,1766073033902,3194.07467805,0.00018,2]
[399013405,1766073037724,-674.47,0.00026931,2]
[399013406,1766073037733,-526.43872567,0.00029689,2]
[399013407,1766073037742,-500.0,0.00029689,2]
[399013408,1766073037752,-198.35865275,0.00029689,2]
[399013409,1766073037761,-500.0,0.00029689,2]
[399013410,1766073037770,-500.0,0.00029689,2]
[399013411,1766073037779,-286.13962517,0.00029689,2]
[399013412,1766073037790,-213.86037483,0.00029689,2]
[399013413,1766073037799,-500.0,0.00029689,2]
[399013414,1766073037808,-500.0,0.00029689,2]
[399013415,1766073037817,-500.0,0.00029689,2]
[399013416,1766073037828,-500.0,0.00029689,2]
[399013417,1766073037837,-500.0,0.00029689,2]
[399013418,1766073037846,-500.0,0.00029689,2]
[399013419,1766073037855,-161.49018861,0.00029689,2]
[399013420,1766073037875,-338.50981139,0.00029689,2]
[399013421,1766073037884,-500.0,0.00029689,2]
[399013422,1766073037894,-500.0,0.00029689,2]
[399013423,1766073037903,-500.0,0.00029689,2]
[399013424,1766073037912,-500.0,0.00029689,2]
[399013425,1766073037921,-272.24970922,0.00029689,2]
[399013426,1766073037930,-500.0,0.00029689,2]
[399013427,1766073037939,-500.0,0.00029689,2]
[399013428,1766073037948,-500.0,0.00029689,2]
[399013429,1766073037957,-500.0,0.00029689,2]
[399013430,1766073037967,-500.0,0.00029689,2]
[399013431,1766073037976,-500.0,0.00029689,2]
[399013432,1766073037986,-500.0,0.00029689,2]
[399013433,1766073037995,-500.0,0.00029689,2]
[399013434,1766073038004,-500.0,0.00029689,2]
[399013435,1766073038013,-500.0,0.00029689,2]
[399013436,1766073038022,-234.94279817,0.00029689,2]
[399013437,1766073038032,-500.0,0.00029689,2]
[399013438,1766073038041,-500.0,0.00029689,2]
[399013439,1766073038051,-500.0,0.00029689,2]
[399013440,1766073038060,-500.0,0.00029689,2]
[399013441,1766073038069,-500.0,0.00029689,2]
[399013442,1766073038078,-500.0,0.00029689,2]
[399013443,1766073038087,-500.0,0.00029689,2]
[399013444,1766073038096,-610.92492883,0.00029689,2]
[399013445,1766073038105,-500.0,0.00029689,2]
[399013446,1766073038114,-276.72858664,0.00029689,2]
[399013447,1766073038124,-500.0,0.00029689,2]
[399013448,1766073038133,-500.0,0.00029689,2]
[399013449,1766073038143,-500.0,0.00029689,2]
[399013450,1766073038152,-500.0,0.00029689,2]
[399013451,1766073038161,-500.0,0.00029689,2]
[399013452,1766073038170,-276.0,0.00030602,120]
[399013453,1766073038179,-674.47,0.00030947,2]
[399013454,1766073038188,-276.0,0.00032132,120]
[399013455,1766073038198,-276.0,0.00033739,120]
[399013456,1766073038208,-674.47,0.0003489,2]
[399013457,1766073038217,-276.0,0.00035425,120]
[399013458,1766073038226,-151.0,0.00038,12]
[399013459,1766073038236,-151.0,0.000381,10]
[399013460,1766073038245,-151.0,0.000382,15]
[399013461,1766073038255,-151.0,0.000383,13]
[399013462,1766073038264,-151.0,0.000384,13]
[399013463,1766073038273,-151.0,0.000385,20]
[399013464,1766073038284,-674.47,0.00038506,2]
[399013465,1766073038293,-151.0,0.000386,11]
[399013466,1766073038303,-151.0,0.000387,18]
[399013467,1766073038312,-151.0,0.000388,10]
[399013468,1766073038322,-1793.7152548,0.00038856,2]
[399013469,1766073038332,-674.47,0.00038898,2]
[399013470,1766073038342,-674.47,0.00038899,2]
[399013471,1766073038352,-674.47,0.00038899,2]
[399013472,1766073038362,-674.47,0.00038899,2]
[399013473,1766073038372,-674.47,0.00038899,2]
[399013474,1766073038382,-674.47,0.00038899,2]
[399013475,1766073038391,-674.47,0.00038899,2]
[399013476,1766073038401,-674.47,0.00038899,2]
[399013477,1766073038411,-674.47,0.00038899,2]
[399013478,1766073038420,-674.47,0.00038899,2]
[399013479,1766073038429,-674.47,0.00038899,2]
[399013480,1766073038536,-151.0,0.00038899,120]
[399013481,1766073038546,-674.47,0.00038899,2]
[399013482,1766073038556,-21478.24975754,0.000389,2]
[399013530,1766073040129,-3e-08,0.00034,120]
[399013623,1766073042835,-199.99999997,0.00034,120]
[399013625,1766073042844,-276.0,0.00037197,120]
[399013626,1766073042853,-674.47,0.00038899,2]
[399013628,1766073042863,-674.47,0.00038899,2]
[399013630,1766073042873,-674.47,0.00038899,2]
[399013632,1766073042884,-674.47,0.00038899,2]
[399013634,1766073042893,-151.0,0.00038899,120]
[399013636,1766073042905,-81.18493124,0.00038899,2]
[399013639,1766073042917,-593.28506876,0.00038899,2]
[399013641,1766073042926,-674.47,0.00038899,2]
[399013643,1766073042935,-674.47,0.00038899,2]
[399013645,1766073042944,-674.568,0.00038899,2]
[399013646,1766073042954,-151.0,0.00038899,120]
[399013648,1766073042963,-1447.2069313,0.000389,2]
[399013651,1766073042974,-404.63637287,0.000389,2]
[399013654,1766073042992,-7883.45929748,0.000389,2]
[399013656,1766073043003,-8126.41739416,0.000389,2]
[399013658,1766073043013,-414.45031978,0.000389,2]
[399013660,1766073043028,-2913.47731066,0.000389,2]
[399013687,1766073046128,-151.0,0.00038899,120]
[399013689,1766073046139,-61396.1,0.000389,2]
[399013693,1766073050939,150.0,4.9e-07,2]
[399013694,1766073051959,150.0,4.9e-07,2]
[399013695,1766073091006,150.0,8.305e-05,2]
[399013696,1766073091420,150.0,8.701e-05,2]
[399013697,1766073091816,150.0,9.096e-05,2]
[399013698,1766073092365,172.53,9.492e-05,2]
[399013699,1766073092668,215.67,9.887e-05,2]
[399013700,1766073093081,258.8,0.00010283,2]
[399013701,1766073093502,301.93,0.00010678,2]
[399013702,1766073093946,345.06,0.00011073,2]
[399013703,1766073094354,388.2,0.00011469,2]
[399013704,1766073094799,431.33,0.00011864,2]
[399013705,1766073124177,1000.0,0.000179,2]
[399013707,1766073151704,174.86,0.0001,2]
[399013709,1766073154139,174.86,0.000102,2]
[399013710,1766073156554,174.86,0.000104,2]
[399013711,1766073158980,174.86,0.000106,2]
[399013712,1766073161371,174.86,0.000108,2]
[399013713,1766073162714,150.0,0.00017042,2]
[399013714,1766073163123,150.0,0.00017854,2]
[399013715,1766073239785,150.0,0.00014797,2]
[399013716,1766073240190,150.0,0.00015502,2]
[399013717,1766073240593,154.75,0.00016206,2]
[399013718,1766073241004,206.34,0.00016911,2]
[399013719,1766073241414,257.92,0.00017615,2]
[399013720,1766073259621,5000.0,0.00018,2]
[399013721,1766073283154,5000.0,0.00018,2]
[399013722,1766073306464,0.01,0.00018,2]
[399013723,1766073306490,4999.99,0.00018,2]
[399013724,1766073317482,150.0,0.00014753,2]
[399013725,1766073317823,150.0,0.00015456,2]
[399013726,1766073318402,223.85,0.00016158,2]
[399013727,1766073318693,298.46,0.00016861,2]
[399013728,1766073319575,373.08,0.00017563,2]
[399013729,1766073329378,3804.63,0.00018,2]
[399013730,1766073329405,1195.37,0.00018,2]
[399013731,1766073347085,8804.64,0.00017,2]
[399013732,1766073347110,1253.86,0.00017,2]
[399013733,1766073353231,5000.0,0.00018,2]
[399013734,1766073364165,1000.0,0.000179,2]
[399013735,1766073376266,2746.15,0.00018,2]
[399013736,1766073376294,2253.85,0.00018,2]
[399013737,1766073397186,150.0,0.00011956,2]
[399013738,1766073397589,290.56,0.00012525,2]
[399013739,1766073398183,435.84,0.00013094,2]
[399013740,1766073398613,581.12,0.00013664,2]
[399013741,1766073399091,726.4,0.00014233,2]
[399013742,1766073399484,871.68,0.00014802,2]
[399013743,1766073399908,1016.96,0.00015372,2]
[399013744,1766073400333,1162.24,0.00015941,2]
[399013745,1766073400767,1307.52,0.0001651,2]
[399013746,1766073401732,1203.84,0.0001708,2]
[399013747,1766073401769,248.96,0.0001708,2]
[399013748,1766073423230,500.0,0.00013273,2]
[399013749,1766073423274,1027.77596645,0.00013821,2]
[399013764,1766073474483,150.0,0.00014652,2]
[399013765,1766073474936,150.0,0.0001535,2]
[399013766,1766073475455,150.0,0.00016047,2]
[399013767,1766073475881,174.09,0.00016745,2]
[399013768,1766073476281,217.62,0.00017443,2]
[399013769,1766073491673,1000.0,0.00014247,2]
[399013770,1766073491871,500.0,0.00013699,2]
[399013771,1766073498423,500.0,0.00013699,2]
[399013772,1766073498480,501.64358783,0.00014247,2]
[399013774,1766073515011,300.0,0.00016565,120]
[399013775,1766073516729,300.0,0.00016565,120]
[399013776,1766073518460,300.0,0.00016565,120]
[399013777,1766073520168,300.0,0.00016565,120]
[399013778,1766073522175,300.0,0.00016565,120]
[399013779,1766073523649,300.0,0.00016565,120]
[399013780,1766073525379,300.0,0.00016565,120]
[399013781,1766073527099,300.0,0.00016565,120]
[399013782,1766073528843,300.0,0.00016565,120]
[399013783,1766073530601,300.0,0.00016565,120]
[399013784,1766073532546,300.0,0.00016565,120]
[399013785,1766073534102,300.0,0.00016565,120]
[399013786,1766073535811,300.0,0.00016565,120]
[399013787,1766073537560,300.0,0.00016565,120]
[399013788,1766073539352,300.0,0.00016565,120]
[399013789,1766073541117,300.0,0.00016565,120]
[399013790,1766073542959,300.0,0.00016565,120]
[399013791,1766073544565,300.0,0.00016565,120]
[399013792,1766073546287,300.0,0.00016565,120]
[399013793,1766073549483,150.0,0.00011731,2]
[399013794,1766073549865,150.0,0.0001229,2]
[399013795,1766073550271,150.0,0.00012849,2]
[399013796,1766073550670,150.0,0.00013407,2]
[399013797,1766073551074,164.06,0.00013966,2]
[399013798,1766073551577,196.87,0.00014524,2]
[399013799,1766073551981,229.68,0.00015083,2]
[399013800,1766073552404,262.49,0.00015642,2]
[399013801,1766073552827,295.3,0.000162,2]
[399013802,1766073553244,328.11,0.00016759,2]
[399013803,1766073559335,537.91178041,0.00013699,2]
[399013804,1766073567260,-864.0,0.00023068,10]
[399013805,1766073567289,-170.456924,0.00023861,41]
[399013806,1766073567321,-170.456924,0.00023861,80]
[399013807,1766073567348,-170.456924,0.00023861,119]
[399013808,1766073567380,-1000.0,0.00025375,10]
[399013809,1766073567411,-1000.0,0.00027912,30]
[399013810,1766073567446,-244.0,0.00027912,30]
[399013811,1766073567588,-1000.0,0.00030703,30]
[399013812,1766073567618,-492.0,0.00030703,30]
[399013813,1766073567646,-250.0,0.00032,120]
[399013814,1766073567673,-190.78250619,0.000332,117]
[399013815,1766073567701,-1000.0,0.00033774,30]
[399013816,1766073567732,-791.0,0.00033774,30]
[399013817,1766073567762,-300.0,0.00034,120]
[399013818,1766073567788,-158.64730314,0.00035276,10]
[399013819,1766073567816,-800.0,0.00036,120]
[399013820,1766073567842,-500.0,0.00036339,30]
[399013821,1766073567869,-158.64730314,0.00036367,10]
[399013822,1766073567901,-1000.0,0.00037151,30]
[399013823,1766073567934,-1000.0,0.00037151,30]
[399013824,1766073567965,-220.39850305,0.00037491,15]
[399013825,1766073568006,-530.24996769,0.00037491,15]
[399013826,1766073568045,-500.0,0.00037491,15]
[399013827,1766073568085,-500.0,0.00037491,15]
[399013828,1766073568118,-335.38547359,0.00037491,15]
[399013829,1766073568151,-500.0,0.00037491,15]
[399013830,1766073568182,-500.0,0.00037491,15]
[399013831,1766073568212,-500.0,0.00037491,15]
[399013832,1766073568242,-500.0,0.00037491,15]
[399013833,1766073568270,-500.0,0.00037491,15]
[399013834,1766073568298,-500.0,0.00037491,15]
[399013835,1766073568338,-500.0,0.00037491,15]
[399013836,1766073568370,-500.0,0.00037491,15]
[399013837,1766073568403,-500.0,0.00037491,15]
[399013838,1766073568435,-412.73566961,0.00037491,15]
[399013839,1766073568468,-500.0,0.00037491,15]
[399013840,1766073568499,-500.0,0.00037491,15]
[399013841,1766073568528,-500.0,0.00037491,15]
[399013842,1766073568556,-500.0,0.00037491,15]
[399013843,1766073568587,-500.0,0.00037491,15]
[399013844,1766073568615,-500.0,0.00037491,15]
[399013845,1766073568643,-500.0,0.00037491,15]
[399013846,1766073568672,-500.0,0.00037491,15]
[399013847,1766073568701,-500.0,0.00037491,15]
[399013848,1766073568728,-500.0,0.00037491,15]
[399013849,1766073568757,-500.0,0.00037491,15]
[399013850,1766073568787,-500.0,0.00037491,15]
[399013851,1766073568818,-426.57653189,0.00037491,15]
[399013852,1766073568849,-500.0,0.00037491,15]
[399013853,1766073568882,-583.53854736,0.00037491,15]
[399013854,1766073568914,-500.0,0.00037491,15]
[399013855,1766073568945,-500.0,0.00037491,15]
[399013856,1766073568979,-500.0,0.00037491,15]
[399013857,1766073569012,-500.0,0.00037491,15]
[399013858,1766073569046,-500.0,0.00037491,15]
[399013859,1766073569080,-500.0,0.00037491,15]
[399013860,1766073569110,-158.64730313,0.00037492,10]
[399013861,1766073569139,-500.0,0.00037616,30]
[399013862,1766073569169,-1268.77656815,0.00038,120]
[399013863,1766073569309,-200.0,0.00038,120]
[399013864,1766073569340,-1226.0662049,0.000382,120]
[399013865,1766073569369,-500.0,0.00038356,120]
[399013866,1766073569397,-299.0,0.00038356,120]
[399013867,1766073569424,-230.74,0.0003879,10]
[399013868,1766073569451,-500.0,0.00038799,15]
[399013869,1766073569480,-500.0,0.00038799,15]
[399013870,1766073569507,-579.11009198,0.00038799,15]
[399013871,1766073569534,-158.12073171,0.00038799,15]
[399013872,1766073569560,-500.0,0.00038799,15]
[399013873,1766073569586,-500.0,0.00038799,15]
[399013874,1766073569614,-500.0,0.00038799,15]
[399013875,1766073569641,-151.0,0.000388,19]
[399013876,1766073569667,-151.0,0.000388,18]
[399013877,1766073569694,-151.0,0.000388,12]
[399013878,1766073569721,-151.0,0.00038899,120]
[399013879,1766073569747,-280.757195,0.00038899,120]
[399013880,1766073569776,-305.547,0.00038899,53]
[399013881,1766073569805,-184.36495993,0.00038899,53]
[399013882,1766073569834,-1041.66666667,0.00038899,120]
[399013883,1766073569863,-151.0,0.000389,120]
[399013884,1766073569892,-151.0,0.000389,120]
[399013885,1766073569920,-151.0,0.000389,13]
[399013886,1766073569947,-151.0,0.000389,120]
[399013887,1766073569979,-151.0,0.000389,120]
[399013888,1766073570008,-151.0,0.000389,120]
[399013889,1766073570038,-151.0,0.000389,120]
[399013890,1766073570067,-163.777667,0.000389,120]
[399013891,1766073570094,-151.0,0.000389,90]
[399013892,1766073570121,-151.0,0.000389,90]
[399013893,1766073570150,-151.0,0.000389,90]
[399013894,1766073570179,-392.176687,0.000389,120]
[399013895,1766073570207,-392.176687,0.000389,120]
[399013896,1766073570235,-392.176687,0.000389,120]
[399013897,1766073570264,-392.176687,0.000389,120]
[399013898,1766073570293,-151.0,0.000389,120]
[399013899,1766073570320,-170.443069,0.000389,120]
[399013900,1766073570349,-170.443069,0.000389,120]
[399013901,1766073570376,-170.443069,0.000389,120]
[399013902,1766073570404,-170.443069,0.000389,120]
[399013903,1766073570431,-151.0,0.000389,17]
[399013904,1766073570459,-151.0,0.000389,120]
[399013905,1766073570487,-151.0,0.000389,120]
[399013906,1766073570514,-151.0,0.000389,120]
[399013907,1766073570540,-167.961272,0.000389,120]
[399013908,1766073570568,-151.0,0.000389,120]
[399013909,1766073570595,-300.9,0.000389,30]
[399013910,1766073570622,-151.0,0.000389,20]
[399013911,1766073570649,-151.0,0.000389,10]
[399013912,1766073570676,-151.0,0.000389,11]
[399013913,1766073570702,-151.0,0.000389,14]
[399013914,1766073570731,-151.0,0.000389,19]
[399013915,1766073570760,-500.0,0.00038927,30]
[399013916,1766073570788,-167448.68914762,0.00039,120]
[399013917,1766073570817,-533.26,0.00039,14]
[399013918,1766073570847,-160.0,0.00039,120]
[399013919,1766073570875,-151.0,0.00039,11]
[399013920,1766073570904,-151.0,0.00039,18]
[399013921,1766073570934,-151.0,0.00039,120]
[399013922,1766073570966,-151.0,0.00039,120]
[399013923,1766073570998,-151.0,0.00039,120]
[399013924,1766073571123,-151.0,0.00039,120]
[399013925,1766073571153,-151.0,0.00039,90]
[399013926,1766073571182,-151.0,0.00039,90]
[399013927,1766073571211,-151.0,0.00039,90]
[399013928,1766073571240,-151.0,0.00039,90]
[399013929,1766073571268,-173.287123,0.00039,90]
[399013930,1766073571298,-392.176687,0.00039,120]
[399013931,1766073571327,-392.176687,0.00039,120]
[399013932,1766073571355,-392.176687,0.00039,120]
[399013933,1766073571383,-392.176687,0.00039,120]
[399013934,1766073571411,-392.176687,0.00039,120]
[399013935,1766073571440,-392.176687,0.00039,120]
[399013936,1766073571467,-392.176687,0.00039,120]
[399013937,1766073571496,-392.176687,0.00039,120]
[399013938,1766073571523,-151.0,0.00039,120]
[399013939,1766073571551,-151.0,0.00039,120]
[399013940,1766073571578,-170.443069,0.00039,120]
[399013941,1766073571607,-170.443069,0.00039,120]
[399013942,1766073571633,-170.443069,0.00039,120]
[399013943,1766073571662,-170.443069,0.00039,120]
[399013944,1766073571689,-170.443069,0.00039,120]
[399013945,1766073571717,-170.443069,0.00039,120]
[399013946,1766073571747,-170.443069,0.00039,120]
[399013947,1766073571776,-170.443069,0.00039,120]
[399013948,1766073571804,-151.0,0.00039,120]
[399013949,1766073571832,-151.0,0.00039,120]
[399013950,1766073571859,-151.0,0.00039,120]
[399013951,1766073571888,-151.0,0.00039,120]
[399013952,1766073571917,-151.0,0.00039,120]
[399013953,1766073571944,-1041.66666667,0.00039,120]
[399013954,1766073571976,-151.0,0.00039,120]
[399013955,1766073572007,-151.0,0.00039,120]
[399013956,1766073572035,-151.0,0.00039,120]
[399013957,1766073572070,-151.0,0.00039,120]
[399013958,1766073572099,-151.0,0.00039,120]
[399013959,1766073572126,-151.0,0.00039,120]
[399013960,1766073572154,-151.0,0.00039,120]
[399013961,1766073572183,-151.0,0.00039,120]
[399013962,1766073572212,-151.0,0.00039,120]
[399013963,1766073572242,-373.916161,0.00039,120]
[399013964,1766073572270,-373.916161,0.00039,120]
[399013965,1766073572299,-373.916161,0.00039,120]
[399013966,1766073572327,-373.916161,0.00039,120]
[399013967,1766073572355,-277.918938,0.00039,120]
[399013968,1766073572382,-152.552002,0.00039,120]
[399013969,1766073572409,-152.611731,0.00039,120]
[399013970,1766073572437,-151.0,0.00039,10]
[399013971,1766073572463,-151.0,0.00039,15]
[399013972,1766073572490,-151.0,0.00039,120]
[399013973,1766073572517,-151.0,0.00039,120]
[399013974,1766073572546,-152.289045,0.00039,120]
[399013975,1766073572574,-151.0,0.00039,120]
[399013976,1766073572600,-151.0,0.00039,120]
[399013977,1766073572626,-189.914235,0.00039,120]
[399013978,1766073572652,-189.914235,0.00039,120]
[399013979,1766073572678,-189.914235,0.00039,120]
[399013980,1766073572706,-189.914235,0.00039,120]
[399013981,1766073572733,-151.0,0.00039,120]
[399013982,1766073572761,-151.580444,0.00039,120]
[399013983,1766073572792,-151.0,0.00039,120]
[399013984,1766073572936,-151.0,0.00039,120]
[399013985,1766073572971,-151.0,0.00039,120]
[399013986,1766073573001,-151.0,0.00039,120]
[399013987,1766073573034,-151.0,0.00039,120]
[399013988,1766073573071,-151.0,0.00039,120]
[399013989,1766073573101,-153.510688,0.00039,120]
[399013990,1766073573130,-151.0,0.00039,120]
[399013991,1766073573159,-151.0,0.00039,120]
[399013992,1766073573189,-151.0,0.00039,120]
[399013993,1766073573217,-151.0,0.00039,120]
[399013994,1766073573245,-151.0,0.00039,120]
[399013995,1766073573273,-151.0,0.00039,120]
[399013996,1766073573303,-260.814723,0.00039,120]
[399013997,1766073573332,-151.0,0.00039,120]
[399013998,1766073573359,-151.0,0.00039,120]
[399013999,1766073573388,-151.0,0.00039,120]
[399014000,1766073573416,-1235.404466,0.00039,120]
[399014001,1766073573443,-1235.404466,0.00039,120]
[399014002,1766073573470,-1235.404466,0.00039,120]
[399014003,1766073573497,-1235.404466,0.00039,120]
[399014004,1766073573525,-151.0,0.00039,120]
[399014005,1766073573551,-500.0,0.0003904,14]